[Event "*** Titled Tuesday Blitz"]
[Site "Chess.com"]
[Date "2020.05.19"]
[Round "2"]
[White "antoszu"]
[Black "rasmussvane"]
[Result "0-1"]
[WhiteElo "2551"]
[BlackElo "2892"]
[TimeControl "180+1"]
[EndTime "12:17:56 PDT"]
[Termination "rasmussvane won by resignation"]

1. d4 {[%clk 0:03:00.9]} 1... d5 {[%clk 0:02:58.9]} 2. c4 {[%clk 0:03:00.8]}
2... e6 {[%clk 0:02:59.2]} 3. Nc3 {[%clk 0:03:00.7]} 3... a6 {[%clk 0:02:59.8]}
4. cxd5 {[%clk 0:02:54.1]} 4... exd5 {[%clk 0:03:00.7]} 5. Nf3 {[%clk
0:02:54.7]} 5... Nf6 {[%clk 0:03:01]} 6. Qb3 {[%clk 0:02:54.9]} 6... c6 {[%clk
0:02:38.4]} 7. Bg5 {[%clk 0:02:52.7]} 7... h6 {[%clk 0:02:30.7]} 8. Bh4 {[%clk
0:02:49]} 8... Bd6 {[%clk 0:02:22.7]} 9. e3 {[%clk 0:02:48.3]} 9... O-O {[%clk
0:02:22.9]} 10. Bd3 {[%clk 0:02:48.2]} 10... Re8 {[%clk 0:02:23]} 11. O-O {[%clk
0:02:47.9]} 11... Nbd7 {[%clk 0:01:57.5]} 12. Qd1 {[%clk 0:02:37.4]} 12... Nb6
{[%clk 0:01:51]} 13. Bc2 {[%clk 0:02:24.7]} 13... Nc4 {[%clk 0:01:30.5]} 14. Rb1
{[%clk 0:02:08.6]} 14... Bg4 {[%clk 0:01:29.5]} 15. Qd3 {[%clk 0:02:08.4]} 15...
Bh5 {[%clk 0:01:14]} 16. Qe2 {[%clk 0:01:36.5]} 16... g5 {[%clk 0:01:03]} 17.
Bg3 {[%clk 0:01:35.3]} 17... Kg7 {[%clk 0:01:02.2]} 18. Bd3 {[%clk 0:01:14.7]}
18... Bxg3 {[%clk 0:00:59.9]} 19. hxg3 {[%clk 0:01:14.2]} 19... Nd6 {[%clk
0:00:58.8]} 20. Qc2 {[%clk 0:01:11.7]} 20... Bxf3 {[%clk 0:00:53.2]} 21. gxf3
{[%clk 0:01:12.6]} 21... Nb5 {[%clk 0:00:53.6]} 22. Kg2 {[%clk 0:01:09.3]} 22...
Qe7 {[%clk 0:00:48]} 23. Rbe1 {[%clk 0:01:05.7]} 23... Rad8 {[%clk 0:00:46.7]}
24. Nxb5 {[%clk 0:01:03.9]} 24... axb5 {[%clk 0:00:47.6]} 25. a3 {[%clk
0:00:52.5]} 25... Rh8 {[%clk 0:00:46.5]} 26. Qc3 {[%clk 0:00:49.5]} 26... Qd6
{[%clk 0:00:45.3]} 27. Bb1 {[%clk 0:00:48.6]} 27... Rhe8 {[%clk 0:00:34.6]} 28.
Rd1 {[%clk 0:00:43.1]} 28... Re7 {[%clk 0:00:33.3]} 29. Qc2 {[%clk 0:00:41.7]}
29... Rde8 {[%clk 0:00:30.5]} 30. Rh1 {[%clk 0:00:41.1]} 30... Qe6 {[%clk
0:00:29.3]} 31. Rh2 {[%clk 0:00:34.6]} 31... Rh8 {[%clk 0:00:22.4]} 32. Qf5
{[%clk 0:00:30.9]} 32... Qxf5 {[%clk 0:00:22.2]} 33. Bxf5 {[%clk 0:00:31.8]}
33... Ne8 {[%clk 0:00:21.2]} 34. g4 {[%clk 0:00:32]} 34... Nd6 {[%clk
0:00:20.9]} 35. Bd3 {[%clk 0:00:32.5]} 35... Nc4 {[%clk 0:00:20.6]} 36. Rd2
{[%clk 0:00:31.2]} 36... Nxd2 {[%clk 0:00:20.5]} 0-1

[Event "*** Titled Tuesday Blitz"]
[Site "Chess.com"]
[Date "2020.05.19"]
[Round "2"]
[White "Sanan_Sjugirov"]
[Black "FedaMaster"]
[Result "1-0"]
[WhiteElo "2834"]
[BlackElo "2529"]
[TimeControl "180+1"]
[EndTime "12:17:57 PDT"]
[Termination "Sanan_Sjugirov won on time"]

1. d4 {[%clk 0:03:00.9]} 1... Nf6 {[%clk 0:02:59.9]} 2. c4 {[%clk 0:03:00.7]}
2... g6 {[%clk 0:03:00.4]} 3. Nc3 {[%clk 0:02:59.8]} 3... d5 {[%clk 0:03:01]} 4.
cxd5 {[%clk 0:02:59.7]} 4... Nxd5 {[%clk 0:03:01.9]} 5. e4 {[%clk 0:03:00.2]}
5... Nxc3 {[%clk 0:03:02.4]} 6. bxc3 {[%clk 0:03:01.1]} 6... Bg7 {[%clk
0:03:03.3]} 7. Nf3 {[%clk 0:03:00.4]} 7... c5 {[%clk 0:03:03.7]} 8. Be3 {[%clk
0:03:00.7]} 8... Nc6 {[%clk 0:02:51.6]} 9. Qd2 {[%clk 0:02:29.1]} 9... O-O
{[%clk 0:02:50.7]} 10. d5 {[%clk 0:02:23.4]} 10... Qa5 {[%clk 0:02:50.5]} 11.
Rc1 {[%clk 0:02:20.1]} 11... Rd8 {[%clk 0:02:51.1]} 12. Be2 {[%clk 0:02:09.1]}
12... e6 {[%clk 0:02:46.2]} 13. Bg5 {[%clk 0:02:08.1]} 13... f6 {[%clk
0:02:45.7]} 14. Bf4 {[%clk 0:02:07.4]} 14... exd5 {[%clk 0:02:29.3]} 15. exd5
{[%clk 0:02:08.3]} 15... Ne7 {[%clk 0:02:20]} 16. c4 {[%clk 0:01:28.5]} 16...
Qxd2+ {[%clk 0:02:18.3]} 17. Nxd2 {[%clk 0:01:18.6]} 17... Nf5 {[%clk
0:01:47.2]} 18. O-O {[%clk 0:01:02.7]} 18... g5 {[%clk 0:00:36.6]} 19. Bc7
{[%clk 0:00:59.6]} 19... Rd7 {[%clk 0:00:34.6]} 20. Ba5 {[%clk 0:00:59.6]} 20...
Nd4 {[%clk 0:00:28.5]} 21. Bd3 {[%clk 0:00:58.9]} 21... b6 {[%clk 0:00:10.2]}
22. Bc3 {[%clk 0:00:58.3]} 22... Re7 {[%clk 0:00:07.3]} 23. Rfe1 {[%clk
0:00:55.5]} 23... Rxe1+ {[%clk 0:00:04.5]} 24. Rxe1 {[%clk 0:00:56.4]} 24... Bf5
{[%clk 0:00:03.2]} 25. Bxf5 {[%clk 0:00:49.6]} 25... Nxf5 {[%clk 0:00:04.1]} 26.
Re6 {[%clk 0:00:40.9]} 26... Kf7 {[%clk 0:00:03.2]} 27. Ne4 {[%clk 0:00:34.7]}
27... g4 {[%clk 0:00:01.2]} 28. h3 {[%clk 0:00:31.3]} 1-0

[Event "*** Titled Tuesday Blitz"]
[Site "Chess.com"]
[Date "2020.05.19"]
[Round "2"]
[White "crazy_but_lazy"]
[Black "yobdc"]
[Result "0-1"]
[WhiteElo "2344"]
[BlackElo "1957"]
[TimeControl "180+1"]
[EndTime "12:17:58 PDT"]
[Termination "yobdc won by resignation"]

1. e4 {[%clk 0:03:00.9]} 1... e5 {[%clk 0:02:59.9]} 2. Nf3 {[%clk 0:03:00.2]}
2... Nc6 {[%clk 0:03:00.2]} 3. Bb5 {[%clk 0:02:58.6]} 3... a6 {[%clk 0:03:00.3]}
4. Ba4 {[%clk 0:02:57.9]} 4... Nf6 {[%clk 0:03:00.6]} 5. O-O {[%clk 0:02:55.1]}
5... Be7 {[%clk 0:03:00.8]} 6. Re1 {[%clk 0:02:54.6]} 6... b5 {[%clk 0:03:01.1]}
7. Bb3 {[%clk 0:02:54.2]} 7... d6 {[%clk 0:03:01.1]} 8. c3 {[%clk 0:02:52.6]}
8... O-O {[%clk 0:03:01.4]} 9. h3 {[%clk 0:02:52.3]} 9... Na5 {[%clk 0:03:01.5]}
10. Bc2 {[%clk 0:02:51.2]} 10... c5 {[%clk 0:03:02]} 11. d4 {[%clk 0:02:47.4]}
11... Qc7 {[%clk 0:03:02.3]} 12. d5 {[%clk 0:02:43.1]} 12... c4 {[%clk
0:03:01.5]} 13. b4 {[%clk 0:02:40.9]} 13... Nb7 {[%clk 0:02:48.7]} 14. a4 {[%clk
0:02:39.9]} 14... Rb8 {[%clk 0:02:48.1]} 15. Be3 {[%clk 0:02:36.9]} 15... Nd8
{[%clk 0:02:46.5]} 16. Nbd2 {[%clk 0:02:30.3]} 16... Bd7 {[%clk 0:02:41.2]} 17.
Ra3 {[%clk 0:02:25.4]} 17... Ne8 {[%clk 0:02:38.4]} 18. Nf1 {[%clk 0:02:19.3]}
18... g6 {[%clk 0:02:36.8]} 19. Ng3 {[%clk 0:02:17]} 19... Ng7 {[%clk
0:02:36.9]} 20. axb5 {[%clk 0:02:05.2]} 20... axb5 {[%clk 0:02:36.6]} 21. Ra7
{[%clk 0:02:02.7]} 21... Rb7 {[%clk 0:02:36.7]} 22. Qa1 {[%clk 0:02:01.6]} 22...
f5 {[%clk 0:02:28]} 23. Bh6 {[%clk 0:01:10.4]} 23... f4 {[%clk 0:02:12.9]} 24.
Rxb7 {[%clk 0:01:04.7]} 24... Qxb7 {[%clk 0:02:10.5]} 25. Nf1 {[%clk 0:01:04.8]}
25... Nf7 {[%clk 0:02:10.3]} 26. Bxg7 {[%clk 0:01:04]} 26... Ra8 {[%clk
0:02:04.3]} 27. Qb2 {[%clk 0:01:00.2]} 27... Kxg7 {[%clk 0:02:04.5]} 28. Ra1
{[%clk 0:00:58.9]} 28... Bd8 {[%clk 0:02:00.9]} 29. Ra3 {[%clk 0:00:51]} 29...
Bb6 {[%clk 0:01:58.2]} 30. N1h2 {[%clk 0:00:47.8]} 30... h5 {[%clk 0:01:53.6]}
31. h4 {[%clk 0:00:45.1]} 31... Ra7 {[%clk 0:01:48.1]} 32. Qa1 {[%clk
0:00:44.3]} 32... Kf6 {[%clk 0:01:35]} 33. Kf1 {[%clk 0:00:42.4]} 33... Nh6
{[%clk 0:01:09.1]} 34. Rxa7 {[%clk 0:00:37.9]} 34... Bxa7 {[%clk 0:01:08.8]} 35.
Bd1 {[%clk 0:00:36.8]} 35... Ng4 {[%clk 0:01:08.7]} 36. Qa2 {[%clk 0:00:35]}
36... Nxf2 {[%clk 0:01:06.5]} 37. Be2 {[%clk 0:00:21.3]} 37... Ng4 {[%clk
0:01:04.2]} 38. Nxg4+ {[%clk 0:00:20.5]} 38... hxg4 {[%clk 0:01:05.1]} 39. Ng5
{[%clk 0:00:20.9]} 39... Qb6 {[%clk 0:01:01.7]} 40. Ke1 {[%clk 0:00:19.2]} 40...
Qf2+ {[%clk 0:00:50]} 41. Kd2 {[%clk 0:00:18.9]} 41... Be3+ {[%clk 0:00:49.4]}
42. Kd1 {[%clk 0:00:17.8]} 42... Qg1+ {[%clk 0:00:48.3]} 0-1

[Event "*** Titled Tuesday Blitz"]
[Site "Chess.com"]
[Date "2020.05.19"]
[Round "2"]
[White "NicoChasin"]
[Black "Corpescador"]
[Result "1-0"]
[WhiteElo "2641"]
[BlackElo "2366"]
[TimeControl "180+1"]
[EndTime "12:17:59 PDT"]
[Termination "NicoChasin won on time"]

1. e4 {[%clk 0:02:57]} 1... c5 {[%clk 0:03:00]} 2. Nf3 {[%clk 0:02:52.3]} 2...
d6 {[%clk 0:02:57.1]} 3. d4 {[%clk 0:02:46.5]} 3... cxd4 {[%clk 0:02:58]} 4.
Nxd4 {[%clk 0:02:47.4]} 4... Nf6 {[%clk 0:02:58.1]} 5. Nc3 {[%clk 0:02:42.4]}
5... a6 {[%clk 0:02:58.1]} 6. Be3 {[%clk 0:02:31.2]} 6... e5 {[%clk 0:02:53.9]}
7. Nf3 {[%clk 0:02:30.5]} 7... Be7 {[%clk 0:02:48.1]} 8. Bc4 {[%clk 0:02:27.7]}
8... O-O {[%clk 0:02:47.2]} 9. Qd2 {[%clk 0:02:23]} 9... Nc6 {[%clk 0:02:44.4]}
10. Bg5 {[%clk 0:02:13.1]} 10... Ne8 {[%clk 0:02:16.4]} 11. Bxe7 {[%clk
0:02:10.5]} 11... Qxe7 {[%clk 0:01:56.2]} 12. O-O-O {[%clk 0:02:07.4]} 12... Be6
{[%clk 0:01:47.8]} 13. Nd5 {[%clk 0:02:06.3]} 13... Qd8 {[%clk 0:01:40.8]} 14.
Ng5 {[%clk 0:02:02.6]} 14... Na5 {[%clk 0:01:22.1]} 15. Be2 {[%clk 0:01:54.6]}
15... h6 {[%clk 0:01:11.6]} 16. Nf3 {[%clk 0:01:48.3]} 16... Rc8 {[%clk
0:01:04]} 17. Qb4 {[%clk 0:01:46.5]} 17... b5 {[%clk 0:00:32.9]} 18. Ne3 {[%clk
0:01:44.5]} 18... Nc6 {[%clk 0:00:22.4]} 19. Qa3 {[%clk 0:01:37]} 19... Qb6
{[%clk 0:00:21.9]} 20. Nd5 {[%clk 0:01:26.4]} 20... Bxd5 {[%clk 0:00:19.3]} 21.
exd5 {[%clk 0:01:26.4]} 21... Ne7 {[%clk 0:00:18.6]} 22. Qe3 {[%clk 0:01:25.6]}
22... Qc7 {[%clk 0:00:17.6]} 23. c3 {[%clk 0:01:24.7]} 23... Nf6 {[%clk
0:00:17.9]} 24. Nh4 {[%clk 0:01:12.4]} 24... Nfxd5 {[%clk 0:00:16.5]} 25. Qg3
{[%clk 0:01:11.9]} 25... Nf4 {[%clk 0:00:16.3]} 26. Bf1 {[%clk 0:01:07]} 26...
b4 {[%clk 0:00:16.2]} 27. c4 {[%clk 0:01:06.7]} 27... d5 {[%clk 0:00:16.1]} 28.
b3 {[%clk 0:01:04.6]} 28... a5 {[%clk 0:00:14.4]} 29. Kb1 {[%clk 0:01:04.2]}
29... d4 {[%clk 0:00:13.1]} 30. Qf3 {[%clk 0:01:02.5]} 30... a4 {[%clk
0:00:10.8]} 31. g3 {[%clk 0:01:02.3]} 31... Ne6 {[%clk 0:00:11.1]} 32. Bd3
{[%clk 0:01:02.7]} 32... axb3 {[%clk 0:00:10.5]} 33. axb3 {[%clk 0:01:03.6]}
33... Ra8 {[%clk 0:00:08.6]} 34. Qe4 {[%clk 0:01:02.6]} 34... f5 {[%clk
0:00:07.3]} 35. Nxf5 {[%clk 0:01:01.9]} 35... Nxf5 {[%clk 0:00:07]} 36. Qd5
{[%clk 0:00:56.7]} 36... Qf7 {[%clk 0:00:05.1]} 37. Rhe1 {[%clk 0:00:54.3]}
37... Rad8 {[%clk 0:00:03.1]} 38. Qxe5 {[%clk 0:00:54]} 38... Nc7 {[%clk
0:00:01.4]} 39. f4 {[%clk 0:00:49.7]} 1-0

[Event "*** Titled Tuesday Blitz"]
[Site "Chess.com"]
[Date "2020.05.19"]
[Round "2"]
[White "olksuna"]
[Black "Sibelephant"]
[Result "0-1"]
[WhiteElo "2578"]
[BlackElo "3179"]
[TimeControl "180+1"]
[EndTime "12:18:00 PDT"]
[Termination "Sibelephant won by resignation"]

1. d4 {[%clk 0:03:00.9]} 1... d5 {[%clk 0:02:59.3]} 2. c4 {[%clk 0:02:59.7]}
2... c6 {[%clk 0:02:59.8]} 3. Nf3 {[%clk 0:02:54.3]} 3... Nf6 {[%clk 0:03:00.1]}
4. Nc3 {[%clk 0:02:54.9]} 4... e6 {[%clk 0:03:00.6]} 5. Bg5 {[%clk 0:02:51.5]}
5... Nbd7 {[%clk 0:03:00]} 6. e3 {[%clk 0:02:50.5]} 6... Qa5 {[%clk 0:03:00]} 7.
Nd2 {[%clk 0:02:50.1]} 7... dxc4 {[%clk 0:03:00.3]} 8. Bxf6 {[%clk 0:02:49.6]}
8... Nxf6 {[%clk 0:03:01]} 9. Nxc4 {[%clk 0:02:49.9]} 9... Qc7 {[%clk
0:03:01.7]} 10. g3 {[%clk 0:02:50.3]} 10... Be7 {[%clk 0:03:00.3]} 11. Bg2
{[%clk 0:02:50.3]} 11... O-O {[%clk 0:03:01]} 12. O-O {[%clk 0:02:50.5]} 12...
Rd8 {[%clk 0:02:57.2]} 13. Qe2 {[%clk 0:02:48.6]} 13... b6 {[%clk 0:02:54.9]}
14. Rfd1 {[%clk 0:02:46]} 14... Bb7 {[%clk 0:02:54.9]} 15. Rac1 {[%clk
0:02:45.4]} 15... Rac8 {[%clk 0:02:28.1]} 16. e4 {[%clk 0:02:15]} 16... Ba6
{[%clk 0:02:13.8]} 17. e5 {[%clk 0:02:04.5]} 17... Nd5 {[%clk 0:02:10.1]} 18.
Ne4 {[%clk 0:02:04.7]} 18... c5 {[%clk 0:02:07.9]} 19. Qe1 {[%clk 0:01:29.9]}
19... Bxc4 {[%clk 0:02:01.9]} 20. Rxc4 {[%clk 0:01:29.8]} 20... b5 {[%clk
0:01:56.8]} 21. Rcc1 {[%clk 0:01:21.6]} 21... c4 {[%clk 0:01:57.2]} 22. a4
{[%clk 0:01:08.9]} 22... bxa4 {[%clk 0:01:31.9]} 23. Ra1 {[%clk 0:00:51]} 23...
Qb6 {[%clk 0:01:28.1]} 24. Qe2 {[%clk 0:00:45.7]} 24... Nb4 {[%clk 0:01:24.4]}
25. Rxa4 {[%clk 0:00:42.4]} 25... Rxd4 {[%clk 0:01:23.9]} 26. Rda1 {[%clk
0:00:35.8]} 26... a6 {[%clk 0:01:24]} 27. h4 {[%clk 0:00:29.8]} 27... h6 {[%clk
0:01:23.6]} 28. h5 {[%clk 0:00:29.3]} 28... Rcd8 {[%clk 0:01:23.8]} 29. Qg4
{[%clk 0:00:20.3]} 29... Kh8 {[%clk 0:01:15.2]} 30. Qf4 {[%clk 0:00:20.1]} 30...
Rf8 {[%clk 0:01:05.4]} 31. Kh2 {[%clk 0:00:13.8]} 31... Nd3 {[%clk 0:01:02.1]}
32. Qe3 {[%clk 0:00:11.4]} 32... Nxe5 {[%clk 0:01:01.9]} 33. Rxa6 {[%clk
0:00:11]} 33... Ng4+ {[%clk 0:00:59.4]} 34. Kh3 {[%clk 0:00:08.8]} 34... Nxe3
{[%clk 0:00:59.6]} 35. Rxb6 {[%clk 0:00:07.2]} 35... Nxg2 {[%clk 0:01:00.1]} 36.
Nc3 {[%clk 0:00:05.1]} 36... Nh4 {[%clk 0:00:58.7]} 37. gxh4 {[%clk 0:00:04.4]}
37... Rxh4+ {[%clk 0:00:59.3]} 38. Kg3 {[%clk 0:00:05]} 38... Rxh5 {[%clk
0:00:59.9]} 39. Ra7 {[%clk 0:00:04.9]} 39... Rg5+ {[%clk 0:01:00]} 40. Kf3
{[%clk 0:00:03.9]} 40... Rf5+ {[%clk 0:01:00.4]} 41. Ke2 {[%clk 0:00:04.1]}
41... Bc5 {[%clk 0:01:01]} 0-1

[Event "*** Titled Tuesday Blitz"]
[Site "Chess.com"]
[Date "2020.05.19"]
[Round "2"]
[White "Nathan_Filgueiras"]
[Black "Bubi6"]
[Result "0-1"]
[WhiteElo "2327"]
[BlackElo "2618"]
[TimeControl "180+1"]
[EndTime "12:18:01 PDT"]
[Termination "Bubi6 won by resignation"]

1. e4 {[%clk 0:03:00.9]} 1... Nf6 {[%clk 0:02:58.1]} 2. e5 {[%clk 0:03:00.4]}
2... Nd5 {[%clk 0:02:58.5]} 3. d4 {[%clk 0:03:00.8]} 3... d6 {[%clk 0:02:58.7]}
4. c4 {[%clk 0:03:01.4]} 4... Nb6 {[%clk 0:02:57.6]} 5. exd6 {[%clk 0:03:02.3]}
5... cxd6 {[%clk 0:02:58]} 6. Nc3 {[%clk 0:03:01]} 6... g6 {[%clk 0:02:58.5]} 7.
Be3 {[%clk 0:03:01.5]} 7... Bg7 {[%clk 0:02:59]} 8. Rc1 {[%clk 0:03:02.4]} 8...
O-O {[%clk 0:02:59.3]} 9. b3 {[%clk 0:03:03]} 9... Nc6 {[%clk 0:02:59.6]} 10. d5
{[%clk 0:03:03.5]} 10... Ne5 {[%clk 0:03:00.1]} 11. Be2 {[%clk 0:03:04.1]} 11...
h5 {[%clk 0:03:00.6]} 12. h3 {[%clk 0:02:54.8]} 12... e6 {[%clk 0:03:00.4]} 13.
f4 {[%clk 0:02:51.6]} 13... Qh4+ {[%clk 0:03:00]} 14. Kf1 {[%clk 0:02:38.4]}
14... Ng4 {[%clk 0:02:59.8]} 15. Bxg4 {[%clk 0:02:31.9]} 15... hxg4 {[%clk
0:02:59.8]} 16. Qe1 {[%clk 0:02:26.4]} 16... Qxe1+ {[%clk 0:02:43.7]} 17. Kxe1
{[%clk 0:02:27.3]} 17... Bxc3+ {[%clk 0:02:40.6]} 18. Rxc3 {[%clk 0:02:27.3]}
18... exd5 {[%clk 0:02:37.8]} 19. hxg4 {[%clk 0:02:05.7]} 19... Bxg4 {[%clk
0:02:26.6]} 20. Kf2 {[%clk 0:01:49.9]} 20... dxc4 {[%clk 0:02:18.8]} 21. bxc4
{[%clk 0:01:50.8]} 21... Rac8 {[%clk 0:02:13.6]} 22. c5 {[%clk 0:01:41.1]} 22...
Nd5 {[%clk 0:02:10.3]} 23. Bd4 {[%clk 0:01:39.6]} 23... f6 {[%clk 0:02:10.6]}
24. Rg3 {[%clk 0:01:36.6]} 24... Bf5 {[%clk 0:02:07]} 25. cxd6 {[%clk
0:01:36.5]} 25... Rc2+ {[%clk 0:01:58.6]} 26. Kf1 {[%clk 0:01:27.8]} 26... Rc1+
{[%clk 0:01:48.3]} 27. Kf2 {[%clk 0:01:26.6]} 27... Rd1 {[%clk 0:01:38.7]} 28.
Bc3 {[%clk 0:01:12]} 28... Nxf4 {[%clk 0:01:28.6]} 29. Ne2 {[%clk 0:01:06.3]}
29... Nd3+ {[%clk 0:01:10]} 30. Rxd3 {[%clk 0:01:00.5]} 30... Rxd3 {[%clk
0:01:10.5]} 31. Bd4 {[%clk 0:00:34.5]} 31... Bg4 {[%clk 0:01:01.9]} 32. Rh4
{[%clk 0:00:29.7]} 32... Bf5 {[%clk 0:00:36.9]} 33. g4 {[%clk 0:00:23.4]} 33...
Bd7 {[%clk 0:00:28.8]} 34. g5 {[%clk 0:00:23.5]} 34... fxg5+ {[%clk 0:00:29.1]}
0-1

[Event "*** Titled Tuesday Blitz"]
[Site "Chess.com"]
[Date "2020.05.19"]
[Round "2"]
[White "pawnwonder"]
[Black "JoakimVonAnd"]
[Result "0-1"]
[WhiteElo "2204"]
[BlackElo "2440"]
[TimeControl "180+1"]
[EndTime "12:18:01 PDT"]
[Termination "JoakimVonAnd won by resignation"]

1. e4 {[%clk 0:03:00.9]} 1... c6 {[%clk 0:02:59.8]} 2. d4 {[%clk 0:03:00]} 2...
d5 {[%clk 0:03:00.7]} 3. Nc3 {[%clk 0:02:59.4]} 3... dxe4 {[%clk 0:03:00.5]} 4.
Nxe4 {[%clk 0:03:00.3]} 4... Bf5 {[%clk 0:03:01]} 5. Ng3 {[%clk 0:02:59.3]} 5...
Bg6 {[%clk 0:03:01.5]} 6. h4 {[%clk 0:02:59.3]} 6... h6 {[%clk 0:02:56]} 7. Nf3
{[%clk 0:02:59]} 7... Nf6 {[%clk 0:02:54.8]} 8. Ne5 {[%clk 0:02:57.9]} 8... Bh7
{[%clk 0:02:52.7]} 9. Bc4 {[%clk 0:02:58.2]} 9... e6 {[%clk 0:02:51]} 10. Qe2
{[%clk 0:02:56.8]} 10... Nd5 {[%clk 0:02:50.6]} 11. Bb3 {[%clk 0:02:45.5]} 11...
Nd7 {[%clk 0:02:43.8]} 12. Bd2 {[%clk 0:02:37.3]} 12... Bd6 {[%clk 0:02:26.3]}
13. O-O-O {[%clk 0:02:11.5]} 13... Qc7 {[%clk 0:02:10.6]} 14. Rhe1 {[%clk
0:02:08.3]} 14... Bxe5 {[%clk 0:02:00.6]} 15. dxe5 {[%clk 0:02:06.3]} 15... Nc5
{[%clk 0:02:00.1]} 16. Qg4 {[%clk 0:01:52.1]} 16... Rg8 {[%clk 0:01:41.4]} 17.
Qc4 {[%clk 0:01:35.5]} 17... Nxb3+ {[%clk 0:01:31.2]} 18. Qxb3 {[%clk
0:01:36.4]} 18... O-O-O {[%clk 0:01:28.2]} 19. Qa3 {[%clk 0:01:06.8]} 19... Kb8
{[%clk 0:01:23.5]} 20. f4 {[%clk 0:00:52.2]} 20... Rd7 {[%clk 0:01:19.9]} 21. c4
{[%clk 0:00:46.5]} 21... Nb6 {[%clk 0:01:14.3]} 22. Ba5 {[%clk 0:00:42.8]} 22...
Rgd8 {[%clk 0:01:05.5]} 23. Rxd7 {[%clk 0:00:14.9]} 23... Qxd7 {[%clk
0:01:04.9]} 24. Qc3 {[%clk 0:00:13.7]} 24... Qd3 {[%clk 0:00:56.4]} 25. Qxd3
{[%clk 0:00:12]} 25... Rxd3 {[%clk 0:00:57.3]} 26. Nh5 {[%clk 0:00:12.4]} 26...
Nxc4 {[%clk 0:00:53.6]} 27. Bc3 {[%clk 0:00:07]} 27... Ne3 {[%clk 0:00:49.3]}
28. Nxg7 {[%clk 0:00:04.4]} 28... Nxg2 {[%clk 0:00:47.2]} 29. Rg1 {[%clk
0:00:04.4]} 29... Nxf4 {[%clk 0:00:43]} 30. Ne8 {[%clk 0:00:04.5]} 30... Ne2+
{[%clk 0:00:40.9]} 0-1

[Event "*** Titled Tuesday Blitz"]
[Site "Chess.com"]
[Date "2020.05.19"]
[Round "2"]
[White "yuki_chess123"]
[Black "INLOVEWITHF"]
[Result "1-0"]
[WhiteElo "2145"]
[BlackElo "2391"]
[TimeControl "180+1"]
[EndTime "12:18:01 PDT"]
[Termination "yuki_chess123 won by resignation"]

1. e4 {[%clk 0:03:00.9]} 1... e5 {[%clk 0:02:54.8]} 2. Nf3 {[%clk 0:03:00.3]}
2... Nc6 {[%clk 0:02:53.7]} 3. Bb5 {[%clk 0:03:00.8]} 3... a6 {[%clk 0:02:53.3]}
4. Ba4 {[%clk 0:03:00.3]} 4... d6 {[%clk 0:02:53.5]} 5. c4 {[%clk 0:02:59.4]}
5... Nf6 {[%clk 0:02:42.8]} 6. Nc3 {[%clk 0:02:59]} 6... Bg4 {[%clk 0:02:38.8]}
7. O-O {[%clk 0:02:04]} 7... Be7 {[%clk 0:02:36.2]} 8. Bxc6+ {[%clk 0:01:58.2]}
8... bxc6 {[%clk 0:02:35.8]} 9. d4 {[%clk 0:01:58.6]} 9... exd4 {[%clk
0:02:34.9]} 10. Qxd4 {[%clk 0:01:59.1]} 10... Bxf3 {[%clk 0:02:33]} 11. gxf3
{[%clk 0:01:59.2]} 11... O-O {[%clk 0:02:33.3]} 12. Kh1 {[%clk 0:01:59.7]} 12...
Qd7 {[%clk 0:02:32.8]} 13. Rg1 {[%clk 0:01:59.6]} 13... Qe6 {[%clk 0:02:28.2]}
14. b3 {[%clk 0:01:58.9]} 14... Nh5 {[%clk 0:02:22.4]} 15. Bg5 {[%clk
0:01:41.7]} 15... Bf6 {[%clk 0:02:16.9]} 16. Bxf6 {[%clk 0:01:40.2]} 16... Qxf6
{[%clk 0:02:17.8]} 17. Qxf6 {[%clk 0:01:36.8]} 17... Nxf6 {[%clk 0:02:18.7]} 18.
Rad1 {[%clk 0:01:23.9]} 18... Nd7 {[%clk 0:02:19.1]} 19. Rge1 {[%clk 0:01:20.1]}
19... Rfe8 {[%clk 0:02:18]} 20. Kg2 {[%clk 0:01:20]} 20... Nc5 {[%clk
0:02:16.7]} 21. f4 {[%clk 0:01:17.1]} 21... f6 {[%clk 0:02:13.5]} 22. f3 {[%clk
0:01:16.9]} 22... a5 {[%clk 0:02:13.3]} 23. Kf2 {[%clk 0:01:11.1]} 23... Kf7
{[%clk 0:02:13.2]} 24. f5 {[%clk 0:01:08.8]} 24... Rab8 {[%clk 0:02:09.4]} 25.
h4 {[%clk 0:00:53.3]} 25... Rb4 {[%clk 0:02:09.7]} 26. Ne2 {[%clk 0:00:46.7]}
26... a4 {[%clk 0:02:09]} 27. Nd4 {[%clk 0:00:44.9]} 27... axb3 {[%clk
0:02:08.6]} 28. axb3 {[%clk 0:00:43.6]} 28... Nxb3 {[%clk 0:02:02.9]} 29. Rb1
{[%clk 0:00:42.7]} 29... Nxd4 {[%clk 0:01:50.3]} 30. Rxb4 {[%clk 0:00:42]} 30...
Nc2 {[%clk 0:01:45.2]} 31. Rb7 {[%clk 0:00:40.9]} 31... Nxe1 {[%clk 0:01:45.1]}
32. Rxc7+ {[%clk 0:00:40.1]} 32... Re7 {[%clk 0:01:39.5]} 33. Rxe7+ {[%clk
0:00:39.9]} 33... Kxe7 {[%clk 0:01:40.4]} 34. Kxe1 {[%clk 0:00:40.4]} 34... Kd7
{[%clk 0:01:38.7]} 35. Kd2 {[%clk 0:00:34.4]} 35... Kc7 {[%clk 0:01:38.6]} 36.
Kd3 {[%clk 0:00:29]} 36... c5 {[%clk 0:01:33.2]} 37. h5 {[%clk 0:00:26.9]} 37...
Kd7 {[%clk 0:01:30.4]} 38. f4 {[%clk 0:00:22]} 38... Ke7 {[%clk 0:01:29]} 39.
Kc3 {[%clk 0:00:20.6]} 39... Kd7 {[%clk 0:01:28.1]} 40. Kb3 {[%clk 0:00:20.3]}
40... Kc6 {[%clk 0:01:26.4]} 41. Ka4 {[%clk 0:00:20.9]} 41... Kb6 {[%clk
0:01:26.3]} 42. Kb3 {[%clk 0:00:19.1]} 42... h6 {[%clk 0:01:21.8]} 43. Ka4
{[%clk 0:00:15.1]} 43... Ka6 {[%clk 0:01:21.5]} 44. Kb3 {[%clk 0:00:15]} 44...
Kb7 {[%clk 0:01:20.5]} 45. Ka4 {[%clk 0:00:14.8]} 45... Kc6 {[%clk 0:01:20.4]}
46. Ka5 {[%clk 0:00:14.3]} 46... Kc7 {[%clk 0:01:20]} 47. Ka6 {[%clk 0:00:13.4]}
47... Kc6 {[%clk 0:01:19.9]} 48. Ka7 {[%clk 0:00:13.5]} 48... Kc7 {[%clk
0:01:19.2]} 49. Ka6 {[%clk 0:00:13.1]} 49... Kc6 {[%clk 0:01:17.6]} 50. Ka7
{[%clk 0:00:13.4]} 50... Kc7 {[%clk 0:01:17.5]} 1-0